fUSD/lending_fUSD_20240626
["ID","MTS","AMOUNT","RATE_DAILY","PERIOD"]
[330431914,1719396641687,-835.1,0.0001909,2]
[330431916,1719396641697,-500.0,0.00019178,2]
[330431918,1719396641706,-200.0,0.00019178,2]
[330431920,1719396641716,-500.0,0.00019178,2]
[330431921,1719396641725,-500.0,0.00019178,2]
[330431923,1719396641734,-500.0,0.00019178,2]
[330431925,1719396641743,-500.0,0.00019178,2]
[330431927,1719396641752,-250.0,0.00019178,2]
[330431929,1719396641761,-1038.85,0.00019178,2]
[330431931,1719396641772,-1197.94585786,0.00019205,2]
[330431934,1719396641781,-1197.94585786,0.00019205,2]
[330431935,1719396641790,-500.0,0.00019232,2]
[330431938,1719396641800,-14880.01790881,0.00019233,2]
[330431940,1719396641809,-291.449646,0.00019303,2]
[330431941,1719396641818,-1000.0,0.00019357,2]
[330431943,1719396641827,-98698.99660813,0.00019451,2]
[330431945,1719396641837,-4610.04801514,0.000195,2]
[330431947,1719396641846,-401.87733906,0.00019599,2]
[330431950,1719396641856,-710.0,0.000196,3]
[330431951,1719396641865,-3231.0,0.000196,3]
[330431953,1719396641874,-1000.0,0.000196,2]
[330431956,1719396641883,-523.50513825,0.00019613,2]
[330431958,1719396641895,-519.72487603,0.00019613,2]
[330431960,1719396641906,-1131.97229302,0.00019614,2]
[330431962,1719396641916,-190.35334513,0.00019623,2]
[330431964,1719396641926,-151.0,0.00019624,2]
[330431966,1719396641936,-185.260255,0.00019624,2]
[330431968,1719396641945,-835.1,0.00019624,2]
[330431970,1719396641954,-253.7846707,0.00019717,2]
[330431972,1719396641963,-4610.04801512,0.00019718,2]
[330431974,1719396641975,-255.916376,0.00019816,2]
[330431976,1719396641984,-255.916376,0.00019816,2]
[330431978,1719396641993,-235.889473,0.00019816,2]
[330431980,1719396642002,-235.889473,0.00019816,2]
[330431982,1719396642011,-151.0,0.00019816,2]
[330431984,1719396642020,-151.0,0.00019816,2]
[330431986,1719396642029,-151.0,0.00019816,2]
[330431988,1719396642038,-151.0,0.00019816,2]
[330431990,1719396642047,-211.778098,0.00019816,2]
[330431992,1719396642057,-151.0,0.00019816,2]
[330431994,1719396642066,-211.778098,0.00019816,2]
[330431996,1719396642075,-433.664823,0.00019816,2]
[330431997,1719396642086,-151.0,0.00019816,2]
[330431999,1719396642097,-433.664823,0.00019816,2]
[330432001,1719396642106,-1073.716606,0.00019816,2]
[330432003,1719396642117,-151.0,0.00019816,2]
[330432006,1719396642127,-1073.716606,0.00019816,2]
[330432007,1719396642136,-151.0,0.00019816,2]
[330432009,1719396642145,-151.0,0.00019816,2]
[330432012,1719396642156,-276.56194,0.00019816,2]
[330432014,1719396642166,-276.56194,0.00019816,2]
[330432016,1719396642175,-151.0,0.00019816,2]
[330432018,1719396642184,-475.118793,0.00019816,2]
[330432020,1719396642193,-475.118793,0.00019816,2]
[330432022,1719396642202,-151.0,0.00019816,2]
[330432024,1719396642211,-151.0,0.00019816,2]
[330432026,1719396642220,-151.0,0.00019817,2]
[330432028,1719396642230,-151.0,0.00019817,2]
[330432029,1719396642239,-151.0,0.00019817,2]
[330432032,1719396642248,-151.0,0.00019817,2]
[330432034,1719396642258,-151.0,0.00019817,2]
[330432036,1719396642267,-251.264298,0.00019817,2]
[330432037,1719396642276,-151.0,0.00019817,2]
[330432040,1719396642286,-151.0,0.00019817,2]
[330432041,1719396642296,-173.013579,0.00019817,2]
[330432043,1719396642305,-173.013579,0.00019817,2]
[330432046,1719396642315,-151.0,0.00019817,2]
[330432048,1719396642324,-151.0,0.00019817,2]
[330432049,1719396642336,-151.0,0.00019817,2]
[330432051,1719396642345,-151.0,0.00019817,2]
[330432053,1719396642353,-151.0,0.00019817,2]
[330432055,1719396642362,-151.0,0.00019817,2]
[330432057,1719396642371,-151.0,0.00019817,2]
[330432059,1719396642380,-151.0,0.00019817,2]
[330432062,1719396642389,-151.0,0.00019817,2]
[330432064,1719396642398,-151.0,0.00019817,2]
[330432066,1719396642407,-151.0,0.00019817,2]
[330432068,1719396642416,-151.0,0.00019817,2]
[330432070,1719396642426,-151.0,0.00019817,2]
[330432072,1719396642435,-151.0,0.00019817,2]
[330432073,1719396642444,-151.0,0.00019817,2]
[330432075,1719396642453,-236.196,0.00019817,2]
[330432076,1719396642462,-203.07802,0.00019817,2]
[330432077,1719396642471,-236.196,0.00019817,2]
[330432078,1719396642479,-154.89045,0.00019817,2]
[330432079,1719396642488,-151.0,0.00019817,2]
[330432080,1719396642498,-151.0,0.00019817,2]
[330432081,1719396642507,-151.0,0.00019817,2]
[330432082,1719396642516,-151.0,0.00019817,2]
[330432083,1719396642525,-151.0,0.00019817,2]
[330432084,1719396642534,-198.378861,0.00019817,2]
[330432085,1719396642543,-151.0,0.00019817,2]
[330432086,1719396642551,-277.437034,0.00019817,2]
[330432087,1719396642560,-151.0,0.00019817,2]
[330432088,1719396642569,-277.437034,0.00019817,2]
[330432090,1719396642578,-151.0,0.00019817,2]
[330432092,1719396642589,-236.947213,0.00019817,2]
[330432094,1719396642598,-406.637294,0.00019817,2]
[330432096,1719396642607,-151.0,0.00019817,2]
[330432098,1719396642615,-236.947213,0.00019817,2]
[330432100,1719396642624,-406.637294,0.00019817,2]
[330432102,1719396642633,-151.0,0.00019817,2]
[330432104,1719396642642,-151.0,0.00019817,2]
[330432106,1719396642651,-187.92,0.00019817,2]
[330432108,1719396642661,-231.487067,0.00019817,2]
[330432109,1719396642670,-187.92,0.00019817,2]
[330432111,1719396642679,-231.487067,0.00019817,2]
[330432113,1719396642688,-165.319449,0.00019817,2]
[330432115,1719396642697,-151.0,0.00019817,2]
[330432117,1719396642706,-165.319449,0.00019817,2]
[330432120,1719396642720,-215.346535,0.00019817,2]
[330432122,1719396642730,-215.346535,0.00019817,2]
[330432124,1719396642739,-151.0,0.00019817,2]
[330432126,1719396642748,-151.0,0.00019817,2]
[330432128,1719396642758,-151.0,0.00019817,2]
[330432130,1719396642766,-151.0,0.00019817,2]
[330432132,1719396642775,-151.0,0.00019817,2]
[330432134,1719396642784,-584.03865,0.00019817,2]
[330432136,1719396642793,-584.03865,0.00019817,2]
[330432138,1719396642803,-440.140798,0.00019817,2]
[330432140,1719396642812,-151.0,0.00019817,2]
[330432142,1719396642821,-440.140798,0.00019817,2]
[330432144,1719396642831,-151.0,0.00019817,2]
[330432146,1719396642840,-151.0,0.00019817,2]
[330432148,1719396642849,-151.0,0.00019817,2]
[330432150,1719396642861,-151.0,0.00019817,2]
[330432152,1719396642871,-504.376636,0.00019817,2]
[330432154,1719396642880,-504.376636,0.00019817,2]
[330432157,1719396642895,-151.0,0.00019817,2]
[330432160,1719396642904,-599.681482,0.00019817,2]
[330432164,1719396642912,-599.681482,0.00019817,2]
[330432167,1719396642919,-1785.589286,0.00019817,2]
[330432170,1719396642928,-1785.589286,0.00019817,2]
[330432172,1719396642938,-2506.04597,0.00019817,2]
[330432174,1719396642947,-2506.04597,0.00019817,2]
[330432176,1719396642956,-159.951172,0.00019817,2]
[330432178,1719396642965,-210.32553,0.00019817,2]
[330432180,1719396642974,-159.951172,0.00019817,2]
[330432182,1719396642984,-151.0,0.00019817,2]
[330432184,1719396642993,-210.32553,0.00019817,2]
[330432186,1719396643003,-151.0,0.00019817,2]
[330432189,1719396643012,-151.0,0.00019817,2]
[330432194,1719396643021,-1227.46271,0.00019817,2]
[330432196,1719396643030,-1227.46271,0.00019817,2]
[330432200,1719396643039,-654.959905,0.00019817,2]
[330432204,1719396643048,-151.0,0.00019817,2]
[330432205,1719396643057,-151.0,0.00019817,2]
[330432208,1719396643066,-654.959905,0.00019817,2]
[330432210,1719396643075,-196.997103,0.00019817,2]
[330432212,1719396643085,-196.997103,0.00019817,2]
[330432216,1719396643094,-339.628778,0.00019817,2]
[330432218,1719396643104,-151.0,0.00019817,2]
[330432220,1719396643113,-160.727267,0.00019817,2]
[330432222,1719396643122,-339.628778,0.00019817,2]
[330432224,1719396643131,-151.0,0.00019817,2]
[330432226,1719396643140,-151.0,0.00019817,2]
[330432228,1719396643150,-151.0,0.00019817,2]
[330432230,1719396643159,-597.509391,0.00019817,2]
[330432232,1719396643169,-597.509391,0.00019817,2]
[330432234,1719396643178,-151.0,0.00019817,2]
[330432236,1719396643187,-151.0,0.00019817,2]
[330432238,1719396643196,-151.0,0.00019817,2]
[330432239,1719396643204,-151.0,0.00019817,2]
[330432242,1719396643214,-151.0,0.00019817,2]
[330432243,1719396643223,-151.0,0.00019817,2]
[330432246,1719396643233,-1367.15404,0.00019817,2]
[330432247,1719396643242,-1367.15404,0.00019817,2]
[330432250,1719396643251,-151.0,0.00019817,2]
[330432251,1719396643260,-151.0,0.00019817,2]
[330432253,1719396643269,-151.0,0.00019817,2]
[330432255,1719396643278,-151.0,0.00019817,2]
[330432258,1719396643288,-152.422703,0.00019817,2]
[330432260,1719396643298,-185.961481,0.00019817,2]
[330432262,1719396643307,-151.0,0.00019817,2]
[330432263,1719396643316,-152.422703,0.00019817,2]
[330432265,1719396643325,-151.0,0.00019817,2]
[330432267,1719396643336,-167.002005,0.00019817,2]
[330432269,1719396643345,-167.002005,0.00019817,2]
[330432271,1719396643354,-151.0,0.00019817,2]
[330432273,1719396643363,-151.0,0.00019817,2]
[330432276,1719396643372,-151.0,0.00019817,2]
[330432277,1719396643381,-151.827949,0.00019817,2]
[330432279,1719396643390,-151.827949,0.00019817,2]
[330432281,1719396643399,-151.0,0.00019817,2]
[330432284,1719396643409,-151.0,0.00019817,2]
[330432285,1719396643418,-151.0,0.00019817,2]
[330432288,1719396643428,-10000.0,0.00019817,2]
[330432289,1719396643437,-10000.0,0.00019817,2]
[330432292,1719396643446,-1534.310936,0.00019817,2]
[330432294,1719396643455,-968.54872,0.00019817,2]
[330432295,1719396643464,-151.0,0.00019817,2]
[330432298,1719396643474,-968.54872,0.00019817,2]
[330432299,1719396643485,-543.043496,0.00019817,2]
[330432301,1719396643494,-543.043496,0.00019817,2]
[330432303,1719396643503,-203.476551,0.00019817,2]
[330432305,1719396643512,-261.47671,0.00019817,2]
[330432307,1719396643521,-203.476551,0.00019817,2]
[330432309,1719396643531,-261.47671,0.00019817,2]
[330432311,1719396643540,-151.0,0.00019817,2]
[330432314,1719396643549,-151.0,0.00019817,2]
[330432315,1719396643558,-333.18,0.00019862,2]
[330432318,1719396643568,-848.05153479,0.00019886,2]
[330432320,1719396643577,-4610.04801512,0.00019936,2]
[330432322,1719396643589,-9366.16351349,0.00019987,2]
[330432324,1719396643598,-275.36858132,0.0002,2]
[330432326,1719396643607,-919.91528,0.0002,2]
[330432328,1719396643616,-257.0,0.0002,2]
[330432330,1719396643624,-225.0,0.0002,2]
[330432332,1719396643633,-949.4,0.0002,2]
[330432334,1719396643642,-190.27287127,0.0002,2]
[330432336,1719396643651,-14427.48824597,0.0002,2]
[330432337,1719396643660,-355.0,0.0002,2]
[330432339,1719396643669,-276.77389402,0.0002,2]
[330432341,1719396643678,-150.0,0.00020003,2]
[330432344,1719396643688,-278.9,0.00020021,2]
[330432346,1719396643698,-150.0,0.00020083,2]
[330432347,1719396643707,-150.0,0.00020109,2]
[330432349,1719396643717,-359.0,0.00020109,2]
[330432351,1719396643730,-1272.0,0.00020109,2]
[330432353,1719396643739,-1830.0,0.00020109,2]
[330432356,1719396643748,-1654.0,0.00020109,2]
[330432358,1719396643758,-656.0,0.00020109,2]
[330432359,1719396643767,-443.0,0.00020109,2]
[330432361,1719396643776,-206.035,0.00020109,2]
[330432363,1719396643785,-2412.0,0.00020109,2]
[330432365,1719396643794,-257.636,0.00020109,2]
[330432366,1719396643803,-1304.0,0.00020109,2]
[330432368,1719396643812,-1984.0,0.00020109,2]
[330432370,1719396643821,-547.0,0.00020109,2]
[330432372,1719396643830,-3201.0,0.00020109,2]
[330432374,1719396643841,-151.0,0.00020122,2]
[330432376,1719396643850,-151.0,0.00020122,2]
[330432378,1719396643859,-151.0,0.00020122,2]
[330432380,1719396643868,-151.0,0.00020122,2]
[330432382,1719396643877,-151.0,0.00020122,2]
[330432384,1719396643886,-277.437034,0.00020122,2]
[330432386,1719396643899,-277.437034,0.00020122,2]
[330432388,1719396643908,-151.0,0.00020122,2]
[330432390,1719396643917,-236.947213,0.00020122,2]
[330432392,1719396643927,-406.637294,0.00020122,2]
[330432393,1719396643937,-151.0,0.00020122,2]
[330432394,1719396643946,-236.947213,0.00020122,2]
[330432395,1719396643955,-406.637294,0.00020122,2]
[330432396,1719396643964,-187.92,0.00020122,2]
[330432397,1719396643976,-187.92,0.00020122,2]
[330432398,1719396643985,-151.0,0.00020122,2]
[330432399,1719396643994,-151.0,0.00020122,2]
[330432400,1719396644003,-151.0,0.00020122,2]
[330432401,1719396644012,-151.0,0.00020122,2]
[330432402,1719396644021,-584.03865,0.00020122,2]
[330432404,1719396644030,-584.03865,0.00020122,2]
[330432406,1719396644039,-440.140798,0.00020122,2]
[330432407,1719396644048,-151.0,0.00020122,2]
[330432408,1719396644057,-440.140798,0.00020122,2]
[330432409,1719396644066,-160.811323,0.00020122,2]
[330432410,1719396644076,-151.0,0.00020122,2]
[330432412,1719396644086,-151.0,0.00020122,2]
[330432414,1719396644095,-151.0,0.00020122,2]
[330432416,1719396644104,-504.376636,0.00020122,2]
[330432418,1719396644113,-504.376636,0.00020122,2]
[330432420,1719396644122,-151.0,0.00020122,2]
[330432422,1719396644131,-255.916376,0.00020122,2]
[330432424,1719396644141,-255.916376,0.00020122,2]
[330432426,1719396644150,-235.889473,0.00020122,2]
[330432428,1719396644159,-235.889473,0.00020122,2]
[330432430,1719396644169,-151.0,0.00020122,2]
[330432432,1719396644178,-151.0,0.00020122,2]
[330432434,1719396644188,-151.0,0.00020122,2]
[330432436,1719396644197,-151.0,0.00020122,2]
[330432438,1719396644206,-211.778098,0.00020122,2]
[330432440,1719396644215,-151.0,0.00020122,2]
[330432442,1719396644224,-211.778098,0.00020122,2]
[330432444,1719396644234,-433.664823,0.00020122,2]
[330432446,1719396644243,-151.0,0.00020122,2]
[330432448,1719396644253,-433.664823,0.00020122,2]
[330432450,1719396644262,-151.0,0.00020122,2]
[330432452,1719396644271,-1073.716606,0.00020122,2]
[330432454,1719396644281,-1073.716606,0.00020122,2]
[330432456,1719396644290,-151.0,0.00020122,2]
[330432458,1719396644299,-151.0,0.00020122,2]
[330432460,1719396644308,-276.56194,0.00020122,2]
[330432462,1719396644317,-276.56194,0.00020122,2]
[330432464,1719396644327,-151.0,0.00020122,2]
[330432466,1719396644337,-475.118793,0.00020122,2]
[330432468,1719396644346,-475.118793,0.00020122,2]
[330432470,1719396644355,-151.0,0.00020122,2]
[330432472,1719396644365,-151.0,0.00020122,2]
[330432474,1719396644374,-1785.589286,0.00020122,2]
[330432476,1719396644383,-1785.589286,0.00020122,2]
[330432478,1719396644392,-2506.04597,0.00020122,2]
[330432480,1719396644401,-2506.04597,0.00020122,2]
[330432482,1719396644410,-159.951172,0.00020122,2]
[330432484,1719396644419,-210.32553,0.00020122,2]
[330432486,1719396644428,-159.951172,0.00020122,2]
[330432488,1719396644437,-151.0,0.00020122,2]
[330432490,1719396644446,-210.32553,0.00020122,2]
[330432492,1719396644455,-278.317627,0.00020122,2]
[330432494,1719396644464,-151.0,0.00020122,2]
[330432496,1719396644473,-1227.46271,0.00020122,2]
[330432497,1719396644482,-1227.46271,0.00020122,2]
[330432498,1719396644491,-654.959905,0.00020122,2]
[330432499,1719396644500,-151.0,0.00020122,2]
[330432500,1719396644509,-151.0,0.00020122,2]
[330432501,1719396644519,-654.959905,0.00020122,2]
[330432502,1719396644528,-196.997103,0.00020122,2]
[330432503,1719396644538,-196.997103,0.00020122,2]
[330432504,1719396644547,-339.628778,0.00020122,2]
[330432505,1719396644557,-151.0,0.00020122,2]
[330432506,1719396644568,-339.628778,0.00020122,2]
[330432507,1719396644582,-151.0,0.00020122,2]
[330432508,1719396644592,-151.0,0.00020122,2]
[330432509,1719396644602,-151.0,0.00020122,2]
[330432510,1719396644611,-597.509391,0.00020122,2]
[330432511,1719396644620,-597.509391,0.00020122,2]
[330432512,1719396644629,-151.0,0.00020122,2]
[330432513,1719396644639,-158.415854,0.00020122,2]
[330432514,1719396644648,-151.0,0.00020122,2]
[330432515,1719396644658,-162.34061,0.00020122,2]
[330432516,1719396644667,-151.0,0.00020122,2]
[330432517,1719396644676,-151.0,0.00020122,2]
[330432518,1719396644686,-1367.15404,0.00020122,2]
[330432519,1719396644695,-1367.15404,0.00020122,2]
[330432520,1719396644707,-151.0,0.00020122,2]
[330432521,1719396644718,-151.0,0.00020122,2]
[330432522,1719396644728,-151.0,0.00020122,2]
[330432523,1719396644739,-151.0,0.00020122,2]
[330432524,1719396644749,-152.422703,0.00020122,2]
[330432525,1719396644758,-151.0,0.00020122,2]
[330432526,1719396644768,-152.422703,0.00020122,2]
[330432527,1719396644778,-151.0,0.00020122,2]
[330432528,1719396644788,-167.002005,0.00020122,2]
[330432529,1719396644797,-167.002005,0.00020122,2]
[330432530,1719396644807,-151.0,0.00020122,2]
[330432531,1719396645122,-189.051979,0.00020122,2]
[330432532,1719396645133,-165.65639,0.00020122,2]
[330432533,1719396645143,-151.827949,0.00020122,2]
[330432534,1719396645152,-151.827949,0.00020122,2]
[330432535,1719396645162,-151.0,0.00020122,2]
[330432536,1719396645173,-221.515295,0.00020122,2]
[330432537,1719396645184,-151.0,0.00020122,2]
[330432538,1719396645195,-10000.0,0.00020122,2]
[330432539,1719396645204,-4900.51753038,0.00020122,2]
[330432540,1719396645223,-5099.48246962,0.00020122,2]
[330432541,1719396645235,-968.54872,0.00020122,2]
[330432542,1719396645248,-151.0,0.00020122,2]
[330432543,1719396645259,-968.54872,0.00020122,2]
[330432544,1719396645268,-543.043496,0.00020122,2]
[330432545,1719396645277,-543.043496,0.00020122,2]
[330432546,1719396645287,-203.476551,0.00020122,2]
[330432547,1719396645296,-261.47671,0.00020122,2]
[330432548,1719396645306,-203.476551,0.00020122,2]
[330432549,1719396645317,-261.47671,0.00020122,2]
[330432550,1719396645327,-151.0,0.00020122,2]
[330432551,1719396645339,-151.0,0.00020122,2]
[330432552,1719396645348,-14880.01790881,0.00020122,2]
[330432553,1719396645358,-150.0,0.00020137,2]
[330432554,1719396645367,-4610.04801512,0.00020155,2]
[330432555,1719396645377,-151.0,0.00020155,2]
[330432556,1719396645388,-151.0,0.00020155,2]
[330432557,1719396645398,-151.0,0.00020155,2]
[330432558,1719396645407,-151.0,0.00020155,2]
[330432559,1719396645416,-151.0,0.00020155,2]
[330432560,1719396645426,-236.196,0.00020155,2]
[330432561,1719396645435,-203.07802,0.00020155,2]
[330432562,1719396645445,-236.196,0.00020155,2]
[330432563,1719396645454,-151.0,0.00020155,2]
[330432564,1719396645463,-151.0,0.00020155,2]
[330432565,1719396645473,-835.1,0.00020157,2]
[330432566,1719396645482,-300.0,0.00020167,2]
[330432567,1719396645491,-150.0,0.00020222,2]
[330432568,1719396645501,-150.0,0.00020225,2]
[330432569,1719396645510,-300.0,0.0002023,2]
[330432570,1719396645520,-150.0,0.00020248,2]
[330432571,1719396645530,-150.0,0.00020251,2]
[330432572,1719396645541,-1500.0,0.0002026,2]
[330432573,1719396645550,-151.0,0.00020265,2]
[330432574,1719396645560,-151.0,0.00020265,2]
[330432575,1719396645571,-151.0,0.00020265,2]
[330432576,1719396645580,-151.0,0.00020265,2]
[330432577,1719396645595,-231.487067,0.00020265,2]
[330432578,1719396645607,-231.487067,0.00020265,2]
[330432579,1719396645616,-165.319449,0.00020265,2]
[330432580,1719396645625,-151.0,0.00020265,2]
[330432581,1719396645635,-165.319449,0.00020265,2]
[330432582,1719396645644,-215.346535,0.00020265,2]
[330432583,1719396645653,-215.346535,0.00020265,2]
[330432584,1719396645663,-599.681482,0.00020265,2]
[330432585,1719396645672,-599.681482,0.00020265,2]
[330432586,1719396645682,-151.0,0.00020267,2]
[330432587,1719396645691,-151.0,0.00020267,2]
[330432588,1719396645701,-151.0,0.00020267,2]
[330432589,1719396645710,-151.0,0.00020267,2]
[330432590,1719396645720,-151.0,0.00020267,2]
[330432591,1719396645730,-151.0,0.00020267,2]
[330432592,1719396645740,-169.612559,0.00020267,2]
[330432593,1719396645749,-151.0,0.00020267,2]
[330432594,1719396645759,-151.0,0.00020267,2]
[330432595,1719396645768,-151.0,0.00020267,2]
[330432596,1719396645778,-151.0,0.00020267,2]
[330432597,1719396645788,-151.0,0.00020267,2]
[330432599,1719396645798,-151.0,0.00020267,2]
[330432600,1719396645809,-300.0,0.00020267,2]
[330432601,1719396645818,-150.0,0.00020268,2]
[330432602,1719396645829,-301.37818236,0.00020318,2]
[330432603,1719396645841,-300.0,0.00020334,2]
[330432604,1719396645850,-1500.0,0.00020365,2]
[330432605,1719396645859,-150.0,0.00020372,2]
[330432606,1719396645869,-4610.04801512,0.00020373,2]
[330432607,1719396645878,-150.0,0.00020379,2]
[330432608,1719396645889,-150.0,0.00020408,2]
[330432609,1719396645905,-1500.0,0.00020417,2]
[330432610,1719396645916,-150.0,0.00020422,2]
[330432611,1719396645926,-1500.0,0.00020489,2]
[330432612,1719396645935,-1500.0,0.00020502,2]
[330432613,1719396645945,-150.0,0.00020523,2]
[330432614,1719396645955,-172.0,0.0002054,2]
[330432615,1719396645964,-1500.0,0.00020541,2]
[330432616,1719396645977,-1500.0,0.00020549,2]
[330432617,1719396645987,-300.0,0.00020557,2]
[330432618,1719396645996,-150.41,0.00020565,2]
[330432619,1719396646005,-155.44,0.00020565,2]
[330432621,1719396646015,-150.0,0.00020565,2]
[330432623,1719396646024,-150.0,0.00020565,2]
[330432625,1719396646034,-150.0,0.00020565,2]
[330432628,1719396646053,-4610.04801512,0.00020591,2]
[330432631,1719396646065,-151.0,0.00020594,2]
[330432634,1719396646075,-151.0,0.00020594,2]
[330432636,1719396646084,-188.344151,0.00020594,2]
[330432639,1719396646096,-173.013579,0.00020594,2]
[330432642,1719396646105,-173.013579,0.00020594,2]
[330432643,1719396646114,-150.0,0.00020601,2]
[330432645,1719396646124,-1500.0,0.00020615,2]
[330432647,1719396646133,-835.1,0.00020691,2]
[330432649,1719396646143,-150.0,0.00020702,2]
[330432650,1719396646153,-1500.0,0.00020719,2]
[330432652,1719396646163,-1500.0,0.00020735,2]
[330432653,1719396646172,-300.0,0.0002075,2]
[330432655,1719396646182,-1131.97229302,0.00020757,2]
[330432657,1719396646191,-356.10291282,0.0002077,2]
[330432658,1719396646201,-150.0,0.00020776,2]
[330432660,1719396646210,-151.0,0.000208,2]
[330432662,1719396646220,-151.0,0.000208,2]
[330432664,1719396646229,-151.0,0.000208,2]
[330432665,1719396646239,-151.0,0.000208,2]
[330432667,1719396646249,-151.0,0.000208,2]
[330432669,1719396646261,-151.0,0.000208,2]
[330432670,1719396646276,-151.0,0.000208,2]
[330432672,1719396646291,-151.0,0.000208,2]
[330432674,1719396646300,-151.0,0.000208,2]
[330432676,1719396646310,-151.0,0.000208,2]
[330432677,1719396646319,-173.013579,0.000208,2]
[330432678,1719396646330,-173.013579,0.000208,2]
[330432679,1719396646343,-151.0,0.000208,2]
[330432680,1719396646353,-151.0,0.000208,2]
[330432682,1719396646362,-151.0,0.000208,2]
[330432684,1719396646371,-151.0,0.000208,2]
[330432686,1719396646382,-151.0,0.000208,2]
[330432688,1719396646392,-151.0,0.000208,2]
[330432690,1719396646401,-287.3264,0.000208,2]
[330432692,1719396646411,-176.516279,0.000208,2]
[330432694,1719396646421,-151.0,0.000208,2]
[330432696,1719396646430,-151.0,0.000208,2]
[330432698,1719396646439,-167.213005,0.000208,2]
[330432700,1719396646448,-151.0,0.000208,2]
[330432702,1719396646458,-151.0,0.000208,2]
[330432704,1719396646467,-151.0,0.000208,2]
[330432706,1719396646476,-236.196,0.000208,2]
[330432708,1719396646486,-203.07802,0.000208,2]
[330432710,1719396646495,-236.196,0.000208,2]
[330432712,1719396646504,-151.0,0.000208,2]
[330432714,1719396646514,-151.0,0.000208,2]
[330432716,1719396646524,-151.0,0.000208,2]
[330432718,1719396646534,-151.0,0.000208,2]
[330432720,1719396646543,-151.0,0.000208,2]
[330432721,1719396646553,-151.0,0.000208,2]
[330432722,1719396646562,-277.437034,0.000208,2]
[330432723,1719396646572,-225.759403,0.000208,2]
[330432724,1719396646581,-277.437034,0.000208,2]
[330432725,1719396646593,-151.0,0.000208,2]
[330432726,1719396646603,-236.947213,0.000208,2]
[330432727,1719396646612,-406.637294,0.000208,2]
[330432728,1719396646623,-151.0,0.000208,2]
[330432729,1719396646632,-236.947213,0.000208,2]
[330432730,1719396646642,-406.637294,0.000208,2]
[330432731,1719396646652,-151.0,0.000208,2]
[330432732,1719396646662,-181.460286,0.000208,2]
[330432733,1719396646671,-187.92,0.000208,2]
[330432734,1719396646682,-231.487067,0.000208,2]
[330432735,1719396646693,-187.92,0.000208,2]
[330432736,1719396646702,-231.487067,0.000208,2]
[330432737,1719396646712,-165.319449,0.000208,2]
[330432738,1719396646726,-151.0,0.000208,2]
[330432739,1719396646737,-165.319449,0.000208,2]
[330432740,1719396646746,-215.346535,0.000208,2]
[330432741,1719396646757,-215.346535,0.000208,2]
[330432742,1719396646767,-151.0,0.000208,2]
[330432743,1719396646777,-151.0,0.000208,2]
[330432745,1719396646787,-151.0,0.000208,2]
[330432747,1719396646797,-157.751778,0.000208,2]
[330432749,1719396646806,-584.03865,0.000208,2]